bitfinex-derivatives/quotes_ETHF0:USTF0_20241129
["timestamp","ask_amount","ask_price","bid_price","bid_amount"]
[1732862426254,1.31390719,3573.0,3572.6,3.2078]
[1732862426453,0.27981,3572.9,3572.7,0.27982]
[1732862427654,1.31390719,3573.0,3572.7,0.27982]
[1732862428156,1.03409719,3573.0,3572.9,0.27981]
[1732862428345,3.68260767,3573.1,3573.0,0.2798]
[1732862428549,1.4956,3573.1,3573.0,0.2798]
[1732862429161,1.4956,3573.1,3573.0,41.0798]
[1732862429557,1.4956,3573.1,3573.0,40.8]
[1732862429759,1.4956,3573.1,3573.0,41.0798]
[1732862430858,1.77539,3573.1,3573.0,40.8]
[1732862431062,0.27981,3573.0,3572.7,0.27982]
[1732862431259,0.27982,3572.8,3572.6,3.48763]
[1732862431456,0.7824,3572.7,3572.6,3.48763]
[1732862431654,0.7824,3572.7,3572.6,44.28763]
[1732862432356,1.4956,3573.1,3572.6,44.0078]
[1732862432554,1.4956,3573.1,3573.0,0.2798]
[1732862432755,1.4956,3573.1,3572.6,44.0078]
[1732862433054,1.4956,3573.1,3572.9,0.2798]
[1732862433855,1.4956,3573.1,3572.6,44.0078]
[1732862434057,1.7754,3573.1,3572.8,0.27982]
[1732862435560,1.7754,3573.1,3572.6,44.0078]
[1732862435561,1.4956,3573.1,3572.9,0.27981]
[1732862435763,1.4956,3573.1,3572.6,44.0078]
[1732862436055,1.4956,3573.1,3572.9,0.27981]
[1732862437764,1.4956,3573.1,3572.9,3.48761]
[1732862438159,1.7754,3573.1,3572.9,3.2078]
[1732862438663,0.2798,3573.0,3572.9,3.2078]
[1732862442969,2.46680767,3573.0,3572.9,3.2078]
[1732862443268,3.56031151,3573.0,3572.9,3.2078]
[1732862443664,1.4956,3573.1,3572.6,40.8]
[1732862443971,3.50174535,3572.7,3572.6,40.8]
[1732862444468,2.91531816,3572.8,3572.6,41.07983]
[1732862444664,2.18781816,3572.7,3572.6,40.8]
[1732862444868,2.18781816,3572.7,3572.6,41.07983]
[1732862445161,1.31392719,3572.7,3572.6,40.8]
[1732862445468,1.03409719,3572.7,3572.6,41.07983]
[1732862445856,1.03409719,3572.7,3572.6,40.8]
[1732862446063,4.31582443,3572.7,3572.6,40.8]
[1732862446263,1.03409719,3572.7,3572.6,40.8]
[1732862447880,4.59565443,3572.7,3572.6,40.8]
[1732862448674,4.60203913,3572.7,3572.6,40.8]
[1732862448871,4.60216783,3572.7,3572.6,40.8]
[1732862449274,1.31392719,3572.7,3572.6,40.8]
[1732862449474,0.27983,3572.7,3572.6,40.8]
[1732862449671,1.31392719,3572.7,3572.6,40.8]
[1732862451370,5.68063244,3572.7,3572.6,40.8]
[1732862451777,1.31392719,3572.7,3572.6,40.8]
[1732862451972,5.69921663,3572.7,3572.6,40.8]
[1732862452273,1.31392719,3572.7,3572.6,40.8]
[1732862453167,4.11312719,3572.7,3572.6,40.8]
[1732862453378,1.31392719,3572.7,3572.6,40.8]
[1732862453574,6.78872973,3572.7,3572.6,40.8]
[1732862453777,1.31392719,3572.7,3572.6,40.8]
[1732862455278,6.78872973,3572.7,3572.6,40.8]
[1732862455482,1.31392719,3572.7,3572.6,40.8]
[1732862458579,3.28702089,3572.7,3572.6,41.07983]
[1732862458776,3.28702089,3572.8,3572.6,40.8]
[1732862458977,3.28702089,3572.8,3572.7,0.27983]
[1732862459283,4.32111808,3572.9,3572.6,0.0225]
[1732862459581,4.32111808,3572.9,3572.8,0.27982]
[1732862459784,1.03409719,3572.9,3572.7,41.07982]
[1732862459984,3.28722735,3572.8,3572.7,41.07982]
[1732862460483,4.32132454,3572.9,3572.7,41.07982]
[1732862460685,4.32132454,3572.9,3572.8,0.27982]
[1732862461684,3.28722735,3573.0,3572.8,6.007]
[1732862461887,2.1915562,3573.2,3572.9,12.7929775]
[1732862462186,2.1915562,3573.3,3573.2,0.27979]
[1732862462486,2.1915562,3573.3,3573.2,4.23229]
[1732862462691,2.1915562,3573.3,3573.2,7.03069]
[1732862462985,3.22565339,3573.3,3573.2,3.9525]
[1732862463187,4.32132454,3573.3,3573.2,3.9525]
[1732862463378,1.03409719,3573.3,3573.2,3.9525]
[1732862463578,1.03409719,3573.3,3573.2,1.02449]
[1732862463782,4.04552735,3573.4,3573.2,3.82289]
[1732862463979,2.19113499,3573.3,3573.2,0.7447]
[1732862464287,1.31387719,3573.3,3572.9,4.68027792]
[1732862464479,2.19114288,3573.1,3572.9,4.40046792]
[1732862464786,2.19114288,3573.1,3572.8,7.60826792]
[1732862464991,2.47094288,3573.1,3572.8,7.88807792]
[1732862465189,2.47094288,3573.1,3572.8,7.60826792]
[1732862465384,0.77,3573.0,3572.8,7.88808792]
[1732862465584,0.77,3573.0,3572.9,0.27981]
[1732862466782,0.77,3573.0,3572.8,7.60826792]
[1732862466977,2.07530719,3572.9,3572.7,48.40826792]
[1732862467183,2.07530719,3572.9,3572.7,40.8]
[1732862467385,4.26645007,3572.9,3572.7,40.8]
[1732862467592,3.23235288,3572.9,3572.7,40.8]
[1732862467891,0.7614,3572.9,3572.7,45.20046792]
[1732862468287,0.7614,3572.9,3572.8,0.27982]
[1732862468485,0.7614,3572.9,3572.8,4.68028792]
[1732862468685,0.7614,3572.9,3572.7,48.68808792]
[1732862468884,0.7614,3572.9,3572.8,4.40046792]
[1732862469085,0.7614,3572.9,3572.7,48.40826792]
[1732862469786,0.27982,3572.8,3572.7,44.0078]
[1732862469985,3.50506007,3572.8,3572.7,40.8]
[1732862470198,4.60114454,3572.8,3572.7,40.8]
[1732862470495,5.69661561,3572.8,3572.7,40.8]
[1732862472897,8.35501438,3572.8,3572.7,40.8]
[1732862473095,0.27988,3572.0,3571.9,4.40046792]
[1732862473299,1.03409719,3572.0,3571.8,7.60826792]
[1732862473507,1.03409719,3572.0,3571.4,10.12977661]
[1732862473508,0.27991,3571.7,3571.4,10.12977661]
[1732862474003,1.31399719,3571.8,3571.5,0.27992]
[1732862474192,4.47621466,3571.9,3571.7,40.8]
[1732862474497,2.56609,3571.9,3571.7,40.8]
[1732862474703,2.2862,3571.9,3571.7,40.8]
[1732862474897,0.2799,3571.8,3571.7,40.8]
[1732862475096,2.19001466,3572.1,3571.7,40.8]
[1732862475295,4.38054327,3572.5,3572.3,0.27986]
[1732862475296,2.19001466,3572.4,3572.3,0.27986]
[1732862475495,3.22411185,3572.5,3572.0,7.60826792]
[1732862475699,1.03409719,3572.5,3572.4,3.2078]
[1732862475896,2.46984466,3572.7,3572.4,44.0078]
[1732862475897,2.19001466,3572.6,3572.4,44.0078]
[1732862476093,3.50394185,3572.7,3572.4,44.28764]
[1732862476298,3.22411185,3572.7,3572.4,44.0078]
[1732862476495,2.46984466,3572.6,3572.4,40.8]
[1732862477109,2.19001466,3572.6,3572.4,40.8]
[1732862477294,2.46985466,3572.6,3572.4,40.8]
[1732862477494,2.19001466,3572.6,3572.4,40.8]
[1732862478297,3.56524745,3572.5,3572.4,40.8]
[1732862478501,2.13977558,3572.6,3571.6,4.40046792]
[1732862478502,6.52031885,3572.6,3571.6,4.40046792]
[1732862478700,0.27987,3572.1,3571.7,0.2799]
[1732862478902,2.2203,3572.0,3571.8,0.27989]
[1732862479107,2.2203,3572.0,3571.9,41.07989]
[1732862480006,1.4906,3572.0,3571.9,41.07989]
[1732862480202,2.18946439,3572.3,3572.2,0.27986]
[1732862480407,0.724,3572.1,3571.9,44.28768]
[1732862481202,0.724,3572.1,3572.0,0.27988]
[1732862482003,0.724,3572.1,3571.9,44.28769]
[1732862482803,0.724,3572.1,3572.0,0.27988]
[1732862484704,0.724,3572.1,3571.9,44.0078]
[1732862485212,1.00387,3572.1,3571.9,44.0078]
[1732862485504,1.00387,3572.1,3571.9,40.8]
[1732862485505,0.27988,3572.0,3571.9,40.8]
[1732862488510,2.46934439,3572.0,3571.9,40.8]
[1732862489810,0.27988,3572.0,3571.9,40.8]
[1732862490217,2.46910454,3572.0,3571.9,40.8]
[1732862492114,0.27988,3572.0,3571.9,40.8]
[1732862492513,2.46798066,3572.0,3571.9,40.8]
[1732862492920,3.07908,3572.0,3571.9,40.8]
[1732862495822,6.35896351,3572.0,3571.9,40.8]
[1732862496223,3.48768,3572.0,3571.9,40.8]
[1732862496517,0.27994,3571.2,3571.1,3.2078]
[1732862496918,0.27994,3571.2,3571.1,44.0078]
[1732862497313,4.32586271,3571.7,3571.1,44.0078]
[1732862497623,2.13977558,3571.7,3571.1,44.28775]
[1732862497818,0.27993,3571.4,3571.1,44.28775]
[1732862498022,0.27991,3571.6,3571.1,44.28775]
[1732862498223,1.06124,3571.3,3571.1,44.0078]
[1732862498418,0.7813,3571.3,3571.1,44.0078]
[1732862498627,0.27994,3571.2,3571.1,44.0078]
[1732862498819,1.00514,3571.2,3571.1,44.0078]
[1732862500819,1.00514,3571.2,3571.1,40.8]
[1732862502021,0.7252,3571.2,3571.1,40.8]
[1732862502221,1.76062498,3571.2,3571.1,40.8]
[1732862502721,2.04056498,3571.2,3571.1,40.8]
[1732862503620,1.76062498,3571.2,3571.1,40.8]
[1732862503823,1.76062498,3571.2,3571.1,41.07995]
[1732862504229,0.7813,3571.3,3571.1,41.07995]
[1732862504428,0.7813,3571.3,3571.2,0.27994]
[1732862504821,0.7813,3571.3,3571.1,41.07995]
[1732862505021,1.31535498,3571.4,3571.1,41.07995]
[1732862505222,0.7204,3571.3,3571.1,41.07995]
[1732862506727,1.00034,3571.3,3571.1,41.07995]
[1732862507425,0.7204,3571.3,3571.1,40.8]
[1732862507626,0.7204,3571.3,3571.1,41.07995]
[1732862508530,0.27994,3571.2,3571.1,40.8]
[1732862508728,1.00034,3571.3,3571.1,41.07995]
[1732862508926,0.7204,3571.3,3571.1,41.07995]
[1732862509737,1.00034,3571.3,3571.1,40.8]
[1732862509926,0.27994,3571.2,3571.1,40.8]
[1732862520537,3.07994,3571.2,3571.1,40.8]
[1732862520745,7.46048327,3571.2,3571.1,40.8]
[1732862521132,3.07994,3571.2,3571.1,40.8]
[1732862522234,3.07994,3571.2,3570.3,3.2078]
[1732862522235,0.28001,3570.4,3570.3,3.2078]
[1732862522539,0.28001,3570.4,3569.3,8.76771104]
[1732862522540,7.61093777,3570.4,3569.0,7.60826792]
[1732862522738,0.28004,3569.9,3569.8,40.8]
[1732862523038,6.36148935,3569.9,3569.8,40.8]
[1732862523243,5.26685488,3569.9,3569.8,40.8]
[1732862523437,2.8016,3569.9,3569.0,3.9282]
[1732862523638,6.48764935,3570.0,3569.0,3.9282]
[1732862523639,0.28011,3569.2,3569.0,3.9282]
[1732862523844,1.03542498,3569.1,3569.0,3.9282]
[1732862524448,1.03542498,3569.1,3569.0,44.0078]
[1732862524947,1.31553498,3569.1,3569.0,40.8]
[1732862525844,1.03542498,3569.1,3569.0,40.8]
[1732862526243,0.28011,3569.1,3569.0,40.8]
[1732862527746,3.08171,3569.1,3569.0,40.8]
[1732862529242,6.28951,3569.1,3569.0,40.8]
[1732862529549,6.28951,3569.1,3568.2,1.03717]
[1732862529554,0.28015,3568.6,3568.2,1.03717]
[1732862529844,0.28015,3568.6,3568.5,40.8]
[1732862530352,1.02935,3568.6,3568.5,40.8]
[1732862530540,0.7492,3568.6,3568.5,40.8]
[1732862530735,0.7492,3568.6,3568.5,41.08015]
[1732862531345,0.7492,3568.6,3568.5,40.8]
[1732862532238,1.4925,3569.0,3568.5,40.8]
[1732862532239,3.91689306,3569.0,3568.6,0.28015]
[1732862532734,3.63677306,3569.0,3568.6,0.28015]
[1732862532938,0.28012,3568.9,3568.5,41.08015]
[1732862533140,3.63677306,3569.0,3568.5,40.8]
[1732862533341,3.91689306,3569.0,3568.6,0.28015]
[1732862533743,3.91689306,3569.0,3568.5,40.8]
[1732862533744,3.91689306,3569.0,3568.7,0.28014]
[1732862534141,3.91689306,3569.0,3568.6,0.28015]
[1732862535341,0.28013,3568.9,3568.6,0.28015]
[1732862536039,3.91689306,3569.0,3568.6,0.28015]
[1732862536234,3.63677306,3569.0,3568.9,0.28012]
[1732862536642,3.48807691,3569.5,3568.5,41.5389]
[1732862536643,3.2078,3569.5,3568.5,41.5389]
[1732862536841,2.42434306,3569.6,3568.8,3.2078]
[1732862537044,2.42434306,3569.6,3569.3,0.28009]
[1732862537443,0.28008,3569.5,3569.4,40.8]
[1732862538046,2.14427306,3569.6,3569.4,40.8]
[1732862538236,2.42434306,3569.6,3569.4,40.8]
[1732862539444,2.14427306,3569.6,3569.4,40.8]
[1732862539751,2.42434306,3569.6,3569.4,40.8]
[1732862540149,2.14427306,3569.6,3569.4,40.8]
[1732862540452,2.14427306,3569.6,3569.4,41.08008]
[1732862540653,2.14427306,3569.6,3569.4,40.8]
[1732862541545,2.14427306,3569.6,3569.4,41.08008]
[1732862541951,2.14427306,3569.6,3569.4,40.8]
[1732862542152,2.14427306,3569.6,3569.4,41.08008]
[1732862543255,2.14427306,3569.6,3569.4,40.8]
[1732862543456,2.14427306,3569.6,3569.5,0.28008]
[1732862543656,2.14427306,3569.6,3569.4,41.08008]
[1732862543848,2.42434306,3569.6,3569.4,40.8]
[1732862544044,2.14427306,3569.6,3569.4,40.8]
[1732862544250,2.14427306,3569.6,3569.5,0.28008]
[1732862544446,2.14427306,3569.6,3569.5,1.02078]
[1732862545950,0.27999,3570.6,3570.3,0.28001]
[1732862546157,0.7902,3570.4,3569.7,3.2078]
[1732862546359,2.14427306,3570.6,3570.5,0.28]
[1732862546654,2.14427306,3570.6,3569.7,3.2078]
[1732862546957,2.14427306,3570.6,3570.5,0.28]
[1732862547362,2.14427306,3570.6,3570.4,0.28]
[1732862547956,2.14427306,3570.6,3570.5,40.8]
[1732862549158,2.14427306,3570.6,3570.5,40.81013067]
[1732862550461,2.14427306,3570.6,3570.5,0.01013067]
[1732862550867,5.22506306,3570.6,3570.5,0.01013067]
[1732862551755,2.42426306,3570.6,3570.5,0.01013067]
[1732862551955,2.14427306,3570.6,3570.5,0.01013067]
[1732862552367,2.42426306,3570.6,3570.5,0.01013067]
[1732862553063,5.22506306,3570.6,3570.5,0.01013067]
[1732862553661,2.42426306,3570.6,3570.5,0.01013067]
[1732862554564,4.94507306,3570.6,3570.0,3.2078]
[1732862554867,0.7712,3570.7,3570.1,0.28002]
[1732862554868,2.14427306,3570.2,3570.1,0.28002]
[1732862556068,3.70487306,3570.2,3570.1,0.28002]
[1732862558968,3.70487306,3570.2,3570.1,0.29210133]
[1732862559766,4.45217306,3570.2,3570.1,0.29210133]
[1732862560065,4.45217306,3570.2,3570.1,0.30032578]
[1732862560268,2.55053275,3570.2,3570.1,0.30032578]
[1732862560463,1.03603275,3570.2,3570.1,0.30032578]
[1732862560764,1.03603275,3570.4,3570.1,0.76720578]
[1732862561071,1.03603275,3570.4,3570.3,0.28001]
[1732862562169,1.03603275,3570.4,3570.3,0.30031578]
[1732862568172,0.28,3570.6,3570.3,0.02030578]
[1732862568375,2.2722,3570.7,3570.6,0.27999]
[1732862568571,3.27984935,3571.1,3570.4,0.70003]
[1732862568572,2.96498216,3571.1,3570.4,0.70003]
[1732862568777,1.03603275,3571.0,3570.9,0.27997]
[1732862569175,1.03603275,3571.0,3570.9,0.30027578]
[1732862569380,1.03603275,3571.0,3570.9,41.10027578]
[1732862570182,1.03603275,3571.0,3570.9,40.82030578]
[1732862571583,1.03603275,3571.0,3570.9,41.10027578]
[1732862572582,1.4654,3571.2,3570.9,40.82030578]
[1732862572788,1.4654,3571.2,3571.1,0.27995]
[1732862573188,1.4654,3571.2,3571.1,0.30025578]
[1732862573486,2.18508216,3571.7,3571.5,0.27992]
[1732862573686,1.5356,3571.6,3571.5,0.27992]
[1732862573886,1.5356,3571.6,3571.4,0.27993]
[1732862574391,1.5356,3571.6,3571.5,0.02030578]
[1732862574592,1.5356,3571.6,3571.5,0.30022578]
[1732862574792,2.2955,3571.6,3571.5,0.02030578]
[1732862575684,2.57541,3571.6,3571.5,0.02030578]
[1732862575883,2.2955,3571.6,3571.5,0.02030578]
[1732862576091,2.57541,3571.6,3571.5,0.02030578]
[1732862576589,2.57541,3571.6,3571.0,3.2078]
[1732862576590,2.2955,3571.6,3571.0,3.2078]
[1732862576787,2.2955,3571.6,3570.9,41.07997]
[1732862576788,0.27995,3571.2,3570.9,41.07997]
[1732862576997,2.14124655,3571.3,3570.9,41.07997]
[1732862577297,0.27995,3571.1,3570.9,40.8]
[1732862577495,0.7814,3571.0,3570.8,0.27997]
[1732862577690,1.06136,3571.0,3570.7,0.27998]
[1732862577889,0.7814,3571.0,3570.8,41.07998]
[1732862578290,1.84366,3571.0,3570.8,41.07998]
[1732862578491,0.27997,3570.9,3570.8,40.8]
[1732862578797,1.84366,3571.0,3570.8,40.8]
[1732862579093,1.84366,3571.0,3570.8,41.07997]
[1732862579883,0.7561,3570.9,3570.8,41.07997]
[1732862582096,0.7561,3570.9,3570.8,40.8]
[1732862582299,1.03607,3570.9,3570.8,40.8]
[1732862582994,0.7561,3570.9,3570.8,40.8]
[1732862583194,0.7561,3570.9,3570.8,41.07998]
[1732862585399,1.03607,3570.9,3570.8,40.8]
[1732862589600,10.35124901,3570.9,3570.8,40.8]
[1732862589802,5.97811655,3570.9,3570.8,40.8]
[1732862590003,9.37185548,3570.9,3570.8,40.8]
[1732862590200,14.84665802,3570.9,3570.8,40.8]
[1732862590402,9.37185548,3570.9,3570.8,40.8]
[1732862590706,0.28003,3570.2,3569.9,0.28004]
[1732862591003,4.75937224,3570.1,3570.0,40.8]
[1732862591207,2.56973,3570.1,3570.0,40.8]
[1732862591411,2.2897,3570.1,3570.0,40.8]
[1732862591704,2.56973,3570.1,3570.0,40.8]
[1732862591908,5.85419337,3570.1,3570.0,40.8]
[1732862592110,2.56973,3570.1,3570.0,40.8]
[1732862593006,9.74981449,3570.1,3570.0,40.8]
[1732862594310,5.37053,3570.1,3570.0,40.8]
[1732862594614,9.74981449,3570.1,3570.0,40.8]
[1732862596306,10.78624136,3570.1,3570.0,40.8]
[1732862597207,0.70012,3569.9,3568.8,3.2078]
[1732862597516,1.03642687,3569.0,3568.7,0.28014]
[1732862597714,1.5236,3568.9,3568.7,0.28014]
[1732862598105,1.5236,3568.9,3568.8,0.28013]
[1732862598416,1.5236,3568.9,3568.8,44.28793]
[1732862598615,2.18772627,3569.3,3568.8,46.8102]
[1732862598908,3.2815894,3569.5,3568.8,44.0078]
[1732862598909,2.18772627,3569.5,3568.8,44.0078]
[1732862599418,0.28009,3569.4,3568.8,44.0078]
[1732862599621,0.28009,3569.4,3569.1,0.28011]
[1732862599908,4.70639627,3569.6,3569.2,0.2801]
[1732862600113,0.28008,3569.5,3569.1,0.2801]
[1732862600415,0.28008,3569.5,3569.2,0.2801]
[1732862600611,4.3317804,3569.7,3568.9,3.2625]
[1732862600816,2.18772627,3569.8,3569.7,0.28006]
[1732862601021,2.46776627,3570.0,3569.7,0.28006]
[1732862601312,2.46776627,3570.0,3569.6,0.28006]
[1732862601508,2.18772627,3570.0,3569.6,0.28006]
[1732862601709,2.18772627,3570.0,3569.5,0.28007]
[1732862601710,0.28005,3569.8,3569.5,0.28007]
[1732862601920,0.28005,3569.8,3569.4,1.08098]
[1732862602810,0.28005,3569.8,3569.5,0.28008]
[1732862603216,0.28005,3569.9,3569.5,0.28008]
[1732862603412,0.28005,3569.9,3569.6,0.28006]
[1732862603605,0.28005,3569.9,3569.5,0.28007]
[1732862604110,6.8300104,3570.1,3569.7,0.28005]
[1732862604305,0.28005,3569.9,3569.5,0.28008]
[1732862604509,0.28005,3569.8,3569.5,0.28008]
[1732862604814,0.28005,3569.8,3569.7,40.8]
[1732862605507,0.28004,3570.0,3569.7,41.08006]
[1732862605713,0.28005,3569.9,3569.7,40.8]
[1732862607820,0.28004,3570.0,3569.7,40.8]
[1732862608016,0.28005,3569.9,3569.7,40.8]
[1732862608521,6.5499804,3570.1,3569.7,40.8]
[1732862608719,0.28005,3569.8,3569.7,40.8]
[1732862610114,0.28005,3569.9,3569.7,40.8]
[1732862610718,0.28004,3570.0,3569.7,40.8]
[1732862611216,0.28004,3570.0,3569.7,41.08006]
[1732862611608,0.28005,3569.9,3569.7,41.08006]
[1732862612211,4.36225413,3570.1,3569.7,40.8]
[1732862612629,0.28004,3570.0,3569.7,41.08006]
[1732862613125,4.36225413,3570.1,3569.7,41.08006]
[1732862613416,0.28005,3569.9,3569.7,40.8]
[1732862614217,0.28005,3569.8,3569.7,40.8]
[1732862614721,0.28005,3569.9,3569.7,40.8]
[1732862615119,4.36225413,3570.1,3569.7,40.8]
[1732862615120,0.28005,3569.8,3569.7,40.8]
[1732862620223,1.31642312,3569.8,3569.7,40.8]
[1732862620722,0.28009,3569.4,3569.2,0.2801]
[1732862621120,1.31645312,3569.5,3569.3,0.28009]
[1732862621321,1.31645312,3569.5,3569.2,2.8016]
[1732862621322,1.31645312,3569.5,3569.4,40.8]
[1732862622420,1.03637312,3569.5,3569.4,40.8]
[1732862622625,1.31645312,3569.5,3569.4,40.8]
[1732862623215,1.03637312,3569.5,3569.4,41.08008]
[1732862623428,1.31645312,3569.5,3569.4,40.8]
[1732862624522,2.06295312,3569.5,3569.4,40.8]
[1732862626630,1.78287312,3569.5,3569.4,40.8]
[1732862626923,1.78287312,3569.5,3569.4,41.08008]
[1732862627326,2.06295312,3569.5,3569.4,40.8]
[1732862627527,1.78287312,3569.5,3569.4,40.8]
[1732862627922,2.06295312,3569.5,3569.4,40.8]
[1732862628122,1.78287312,3569.5,3569.4,41.08008]
[1732862628729,1.78287312,3569.5,3569.4,40.8]
[1732862629030,2.06295312,3569.5,3569.4,40.8]
[1732862630326,1.78287312,3569.5,3569.4,41.08008]
[1732862630523,2.92002627,3569.6,3569.5,0.28008]
[1732862630727,0.7323,3569.6,3569.5,0.28008]
[1732862631329,2.92002627,3569.6,3569.5,0.28008]
[1732862632025,2.18772627,3569.6,3569.5,3.08168]
[1732862633232,3.2815894,3569.7,3569.5,3.08168]
[1732862633435,3.2815894,3569.6,3569.5,0.28008]
[1732862633826,3.2815894,3569.7,3569.6,0.28007]
[1732862634133,1.06105,3569.8,3569.6,0.28007]
[1732862634335,3.28329107,3569.7,3569.6,0.28007]
[1732862634632,5.43650254,3569.8,3569.6,0.28007]
[1732862634834,0.28007,3569.6,3569.4,41.08008]
[1732862635033,4.32081169,3569.5,3569.4,41.08008]
[1732862635227,1.78227312,3569.5,3569.4,41.08008]
[1732862635431,1.78227312,3569.5,3569.4,40.8]
[1732862635933,6.15772566,3569.5,3569.4,40.8]
[1732862636126,6.15772566,3569.5,3569.4,41.08008]
[1732862636329,6.15772566,3569.5,3569.4,40.8]
[1732862636537,6.15772566,3569.5,3569.4,41.08008]
[1732862637123,6.43780566,3569.5,3569.4,40.8]
[1732862637534,4.37545254,3569.5,3569.4,40.8]
[1732862637837,3.28630723,3569.6,3569.4,44.0078]
[1732862638036,1.79537312,3569.7,3569.5,0.28008]
[1732862638537,3.28661058,3569.6,3569.4,48.40826792]
[1732862638741,3.28661058,3569.7,3569.5,5.13536792]
[1732862639034,3.28665653,3569.6,3569.5,0.7349]
[1732862639231,3.28665653,3569.7,3569.5,5.13536792]
[1732862639436,3.7069761,3569.7,3569.6,0.28007]
[1732862639632,3.7069761,3569.7,3569.6,3.08167]
[1732862639840,3.28665653,3569.8,3569.7,0.28006]
[1732862640335,3.28665653,3569.8,3569.7,3.08166]
[1732862640841,2.19127136,3569.8,3569.7,7.94773772]
[1732862641034,2.19127136,3569.9,3569.8,0.28005]
[1732862641346,2.19127136,3569.9,3569.8,7.89463076]
[1732862641633,2.19127136,3569.9,3569.8,10.69623076]
[1732862641835,2.19127136,3570.1,3569.9,0.28004]
[1732862642038,2.19127136,3570.1,3570.0,4.68577943]
[1732862642338,2.19127136,3570.2,3570.1,0.28003]
[1732862642529,2.19127136,3570.2,3570.1,1.04113]
[1732862643035,3.22764448,3570.2,3570.1,1.04113]
[1732862643238,3.22764448,3570.2,3570.1,41.84113]
[1732862643537,3.22764448,3570.2,3570.1,41.08003]
[1732862643739,1.03637312,3570.2,3570.1,41.08003]
[1732862644238,3.22597734,3570.2,3570.1,41.08003]
[1732862644431,3.22625413,3570.2,3570.1,41.08003]
[1732862645146,1.03637312,3570.2,3570.1,41.08003]
[1732862646342,3.22594398,3570.2,3570.1,41.08003]
[1732862646541,1.03637312,3570.2,3570.1,41.08003]
[1732862647038,3.22595199,3570.2,3570.1,41.08003]
[1732862648532,1.03637312,3570.2,3570.1,41.08003]
[1732862649331,2.18957887,3570.3,3570.1,40.8]
[1732862649534,2.18957887,3570.3,3570.2,0.28002]
[1732862649736,3.22595199,3570.4,3570.3,0.28001]
[1732862649938,3.22520775,3570.4,3570.3,0.28001]
[1732862650341,3.22493211,3570.4,3570.3,0.28001]
[1732862650833,1.31638312,3570.4,3570.2,0.28002]
[1732862651038,2.18803032,3570.3,3570.2,0.28002]
[1732862651738,2.18803032,3570.3,3570.1,40.8]
[1732862652242,2.18803032,3570.3,3570.2,3.08082]
[1732862652639,2.18803032,3570.4,3570.3,0.28001]
[1732862653033,2.18803032,3570.4,3570.2,3.2078]
[1732862653034,3.22440344,3570.4,3570.2,3.2078]
[1732862653240,3.22440344,3570.4,3570.2,3.48782]
[1732862654538,3.50441344,3570.4,3570.2,3.48782]
[1732862654738,3.50441344,3570.4,3570.2,3.2078]
[1732862655145,2.18803032,3570.3,3570.2,3.48782]
[1732862655443,3.50441344,3570.4,3570.2,3.48782]
[1732862655645,3.50441344,3570.4,3570.2,0.28002]
[1732862656037,3.22440344,3570.4,3570.2,0.28002]
[1732862656437,3.22440344,3570.4,3570.1,40.8]
[1732862656645,3.22440344,3570.4,3570.3,0.28001]
[1732862657347,1.03637312,3570.4,3570.3,0.28001]
[1732862657539,3.22440344,3570.4,3570.3,0.28001]
[1732862657942,3.22440344,3570.4,3570.2,0.28002]
[1732862658141,3.50441344,3570.4,3570.2,0.28002]
[1732862658341,1.03637312,3570.4,3570.2,0.28002]
[1732862658548,1.03637312,3570.4,3570.1,40.8]
[1732862658748,3.22440344,3570.4,3570.2,0.28002]
[1732862659352,3.50441344,3570.4,3570.2,0.28002]
[1732862660042,1.03637312,3570.4,3570.2,0.28002]
[1732862661841,1.03637312,3570.4,3570.1,40.8]
[1732862662045,1.03637312,3570.4,3570.3,0.28001]
[1732862662245,1.03637312,3570.4,3570.1,40.8]
[1732862662453,0.28002,3570.3,3570.1,40.8]
[1732862662650,3.22440344,3570.4,3570.1,40.8]
[1732862662846,1.03637312,3570.4,3570.1,40.8]
[1732862663147,0.28002,3570.3,3570.1,40.8]
[1732862663544,2.18680963,3570.4,3570.1,40.8]
[1732862663947,1.5212,3570.7,3570.2,3.83717312]
[1732862663948,3.70800963,3570.7,3570.2,3.83717312]
[1732862664140,0.734,3570.7,3570.6,3.48779]
[1732862664347,0.7597,3570.9,3570.8,0.27997]
[1732862664348,2.94650963,3570.9,3570.8,0.27997]
[1732862664853,0.7597,3570.9,3570.8,3.08077]
[1732862668354,0.7597,3570.9,3570.8,0.27997]
[1732862669753,1.03637312,3571.3,3571.0,0.27995]
[1732862669947,1.4443,3571.2,3571.0,3.48775]
[1732862670551,1.03637312,3571.1,3571.0,3.2078]
[1732862671055,1.03637312,3571.1,3571.0,3.48776]
[1732862671252,1.4443,3571.2,3571.0,3.48776]
[1732862671755,1.4443,3571.2,3571.1,0.27995]
[1732862671950,1.4443,3571.2,3571.1,3.07995]
[1732862672260,0.7435,3571.2,3571.1,3.07995]
[1732862672456,0.7321,3571.4,3571.3,0.27994]
[1732862674150,0.7321,3571.4,3571.2,0.27994]
[1732862674349,0.7321,3571.4,3571.3,0.27994]
[1732862675354,0.7321,3571.4,3571.1,0.27995]
[1732862675752,1.01203,3571.4,3571.1,0.27995]
[1732862675955,0.7321,3571.4,3571.2,0.27994]
[1732862677749,1.01203,3571.4,3571.0,3.2078]
[1732862677950,1.03637312,3571.2,3571.0,3.48775]
[1732862678154,1.03637312,3571.2,3571.0,3.2078]
[1732862678348,1.03637312,3571.2,3571.0,3.48776]
[1732862678757,1.03637312,3571.2,3571.0,3.2078]
[1732862679155,1.31632312,3571.2,3571.0,3.2078]
[1732862679457,1.03637312,3571.2,3570.8,40.8]
[1732862679657,0.27996,3571.0,3570.8,40.8]
[1732862679959,0.7659,3570.9,3570.8,40.8]